{"text_format":"3","workbook":"xlsx","n_sheets":5,"sheets":["Laporan Jualan Produk","Data Bersejarah","Senarai Harga","Pangsi Titik Harga","Pangsi Aliran Jualan"],"not_rendered":{"charts":2,"defined_names":6,"pivot_tables":2},"read":"whole","date_system":"1900"}

{"sheet":"Laporan Jualan Produk","index":0,"n_rows":20,"n_cols":2,"rows_kept":20}
[null,"Laporan Jualan Produk"]
{"$rows_empty":18}
[null," Produk"]

{"sheet":"Data Bersejarah","index":1,"n_rows":33,"n_cols":10,"rows_kept":33}
[null,"Senarai Harga Produk Bersejarah & Jualan"]
[]
[null,"ID Produk","Nama Produk","Tarikh Harga","Harga Runcit Per Unit","Harga Pukal Per Unit*","Unit Dijual (runcit)","Unit Dijual (pukal)","Jumlah Jualan (#)","Jumlah Jualan (RM)"]
[null,5,{"$f":"IFERROR(IF(tblSales[[#This Row],[ID Produk]]<>\"\",VLOOKUP(tblSales[ID Produk],tblProducts[[ID Produk]:[Nama]],2,FALSE),\"\"),\"ID Produk Tak Diketahui\")","v":"Seluar Pendek"},"2012-01-01",20,{"v":20,"d":"RM20"},629,{"v":1254,"d":"1,254"},{"$f":"tblSales[[#This Row],[Unit Dijual (runcit)]]+tblSales[[#This Row],[Unit Dijual (pukal)]]","v":{"v":1883,"d":"1,883"}},{"$f":"tblSales[[#This Row],[Unit Dijual (runcit)]]*tblSales[[#This Row],[Harga Runcit Per Unit]]+tblSales[[#This Row],[Unit Dijual (pukal)]]*tblSales[[#This Row],[Harga Pukal Per Unit*]]","v":{"v":37660,"d":"RM37,660"}}]
[null,1,{"$f":"IFERROR(IF(tblSales[[#This Row],[ID Produk]]<>\"\",VLOOKUP(tblSales[ID Produk],tblProducts[[ID Produk]:[Nama]],2,FALSE),\"\"),\"ID Produk Tak Diketahui\")","v":"Kemeja"},"2012-01-01",88,{"v":54,"d":"RM54"},734,{"v":1427,"d":"1,427"},{"$f":"tblSales[[#This Row],[Unit Dijual (runcit)]]+tblSales[[#This Row],[Unit Dijual (pukal)]]","v":{"v":2161,"d":"2,161"}},{"$f":"tblSales[[#This Row],[Unit Dijual (runcit)]]*tblSales[[#This Row],[Harga Runcit Per Unit]]+tblSales[[#This Row],[Unit Dijual (pukal)]]*tblSales[[#This Row],[Harga Pukal Per Unit*]]","v":{"v":141650,"d":"RM141,650"}}]
[null,2,{"$f":"IFERROR(IF(tblSales[[#This Row],[ID Produk]]<>\"\",VLOOKUP(tblSales[ID Produk],tblProducts[[ID Produk]:[Nama]],2,FALSE),\"\"),\"ID Produk Tak Diketahui\")","v":"Sandal"},"2012-01-01",70,{"v":44,"d":"RM44"},744,{"v":1043,"d":"1,043"},{"$f":"tblSales[[#This Row],[Unit Dijual (runcit)]]+tblSales[[#This Row],[Unit Dijual (pukal)]]","v":{"v":1787,"d":"1,787"}},{"$f":"tblSales[[#This Row],[Unit Dijual (runcit)]]*tblSales[[#This Row],[Harga Runcit Per Unit]]+tblSales[[#This Row],[Unit Dijual (pukal)]]*tblSales[[#This Row],[Harga Pukal Per Unit*]]","v":{"v":97972,"d":"RM97,972"}}]
[null,3,{"$f":"IFERROR(IF(tblSales[[#This Row],[ID Produk]]<>\"\",VLOOKUP(tblSales[ID Produk],tblProducts[[ID Produk]:[Nama]],2,FALSE),\"\"),\"ID Produk Tak Diketahui\")","v":"Payung"},"2012-01-01",63,{"v":44,"d":"RM44"},681,{"v":1523,"d":"1,523"},{"$f":"tblSales[[#This Row],[Unit Dijual (runcit)]]+tblSales[[#This Row],[Unit Dijual (pukal)]]","v":{"v":2204,"d":"2,204"}},{"$f":"tblSales[[#This Row],[Unit Dijual (runcit)]]*tblSales[[#This Row],[Harga Runcit Per Unit]]+tblSales[[#This Row],[Unit Dijual (pukal)]]*tblSales[[#This Row],[Harga Pukal Per Unit*]]","v":{"v":109915,"d":"RM109,915"}}]
[null,4,{"$f":"IFERROR(IF(tblSales[[#This Row],[ID Produk]]<>\"\",VLOOKUP(tblSales[ID Produk],tblProducts[[ID Produk]:[Nama]],2,FALSE),\"\"),\"ID Produk Tak Diketahui\")","v":"Botol air"},"2012-01-01",35,{"v":27,"d":"RM27"},602,{"v":1822,"d":"1,822"},{"$f":"tblSales[[#This Row],[Unit Dijual (runcit)]]+tblSales[[#This Row],[Unit Dijual (pukal)]]","v":{"v":2424,"d":"2,424"}},{"$f":"tblSales[[#This Row],[Unit Dijual (runcit)]]*tblSales[[#This Row],[Harga Runcit Per Unit]]+tblSales[[#This Row],[Unit Dijual (pukal)]]*tblSales[[#This Row],[Harga Pukal Per Unit*]]","v":{"v":70264,"d":"RM70,264"}}]
[null,1,{"$f":"IFERROR(IF(tblSales[[#This Row],[ID Produk]]<>\"\",VLOOKUP(tblSales[ID Produk],tblProducts[[ID Produk]:[Nama]],2,FALSE),\"\"),\"ID Produk Tak Diketahui\")","v":"Kemeja"},"2012-02-01",55,{"v":44,"d":"RM44"},678,{"v":1515,"d":"1,515"},{"$f":"tblSales[[#This Row],[Unit Dijual (runcit)]]+tblSales[[#This Row],[Unit Dijual (pukal)]]","v":{"v":2193,"d":"2,193"}},{"$f":"tblSales[[#This Row],[Unit Dijual (runcit)]]*tblSales[[#This Row],[Harga Runcit Per Unit]]+tblSales[[#This Row],[Unit Dijual (pukal)]]*tblSales[[#This Row],[Harga Pukal Per Unit*]]","v":{"v":103950,"d":"RM103,950"}}]
[null,2,{"$f":"IFERROR(IF(tblSales[[#This Row],[ID Produk]]<>\"\",VLOOKUP(tblSales[ID Produk],tblProducts[[ID Produk]:[Nama]],2,FALSE),\"\"),\"ID Produk Tak Diketahui\")","v":"Sandal"},"2012-02-01",83,{"v":54,"d":"RM54"},753,{"v":1005,"d":"1,005"},{"$f":"tblSales[[#This Row],[Unit Dijual (runcit)]]+tblSales[[#This Row],[Unit Dijual (pukal)]]","v":{"v":1758,"d":"1,758"}},{"$f":"tblSales[[#This Row],[Unit Dijual (runcit)]]*tblSales[[#This Row],[Harga Runcit Per Unit]]+tblSales[[#This Row],[Unit Dijual (pukal)]]*tblSales[[#This Row],[Harga Pukal Per Unit*]]","v":{"v":116769,"d":"RM116,769"}}]
[null,3,{"$f":"IFERROR(IF(tblSales[[#This Row],[ID Produk]]<>\"\",VLOOKUP(tblSales[ID Produk],tblProducts[[ID Produk]:[Nama]],2,FALSE),\"\"),\"ID Produk Tak Diketahui\")","v":"Payung"},"2012-02-01",34,{"v":34,"d":"RM34"},986,{"v":1069,"d":"1,069"},{"$f":"tblSales[[#This Row],[Unit Dijual (runcit)]]+tblSales[[#This Row],[Unit Dijual (pukal)]]","v":{"v":2055,"d":"2,055"}},{"$f":"tblSales[[#This Row],[Unit Dijual (runcit)]]*tblSales[[#This Row],[Harga Runcit Per Unit]]+tblSales[[#This Row],[Unit Dijual (pukal)]]*tblSales[[#This Row],[Harga Pukal Per Unit*]]","v":{"v":69870,"d":"RM69,870"}}]
[null,4,{"$f":"IFERROR(IF(tblSales[[#This Row],[ID Produk]]<>\"\",VLOOKUP(tblSales[ID Produk],tblProducts[[ID Produk]:[Nama]],2,FALSE),\"\"),\"ID Produk Tak Diketahui\")","v":"Botol air"},"2012-02-01",35,{"v":25,"d":"RM25"},848,{"v":1211,"d":"1,211"},{"$f":"tblSales[[#This Row],[Unit Dijual (runcit)]]+tblSales[[#This Row],[Unit Dijual (pukal)]]","v":{"v":2059,"d":"2,059"}},{"$f":"tblSales[[#This Row],[Unit Dijual (runcit)]]*tblSales[[#This Row],[Harga Runcit Per Unit]]+tblSales[[#This Row],[Unit Dijual (pukal)]]*tblSales[[#This Row],[Harga Pukal Per Unit*]]","v":{"v":59955,"d":"RM59,955"}}]
[null,5,{"$f":"IFERROR(IF(tblSales[[#This Row],[ID Produk]]<>\"\",VLOOKUP(tblSales[ID Produk],tblProducts[[ID Produk]:[Nama]],2,FALSE),\"\"),\"ID Produk Tak Diketahui\")","v":"Seluar Pendek"},"2012-02-01",41,{"v":38,"d":"RM38"},980,{"v":1330,"d":"1,330"},{"$f":"tblSales[[#This Row],[Unit Dijual (runcit)]]+tblSales[[#This Row],[Unit Dijual (pukal)]]","v":{"v":2310,"d":"2,310"}},{"$f":"tblSales[[#This Row],[Unit Dijual (runcit)]]*tblSales[[#This Row],[Harga Runcit Per Unit]]+tblSales[[#This Row],[Unit Dijual (pukal)]]*tblSales[[#This Row],[Harga Pukal Per Unit*]]","v":{"v":90720,"d":"RM90,720"}}]
[null,1,{"$f":"IFERROR(IF(tblSales[[#This Row],[ID Produk]]<>\"\",VLOOKUP(tblSales[ID Produk],tblProducts[[ID Produk]:[Nama]],2,FALSE),\"\"),\"ID Produk Tak Diketahui\")","v":"Kemeja"},"2012-02-29",27,{"v":18,"d":"RM18"},533,{"v":1936,"d":"1,936"},{"$f":"tblSales[[#This Row],[Unit Dijual (runcit)]]+tblSales[[#This Row],[Unit Dijual (pukal)]]","v":{"v":2469,"d":"2,469"}},{"$f":"tblSales[[#This Row],[Unit Dijual (runcit)]]*tblSales[[#This Row],[Harga Runcit Per Unit]]+tblSales[[#This Row],[Unit Dijual (pukal)]]*tblSales[[#This Row],[Harga Pukal Per Unit*]]","v":{"v":49239,"d":"RM49,239"}}]
[null,2,{"$f":"IFERROR(IF(tblSales[[#This Row],[ID Produk]]<>\"\",VLOOKUP(tblSales[ID Produk],tblProducts[[ID Produk]:[Nama]],2,FALSE),\"\"),\"ID Produk Tak Diketahui\")","v":"Sandal"},"2012-02-29",38,{"v":28,"d":"RM28"},952,{"v":1512,"d":"1,512"},{"$f":"tblSales[[#This Row],[Unit Dijual (runcit)]]+tblSales[[#This Row],[Unit Dijual (pukal)]]","v":{"v":2464,"d":"2,464"}},{"$f":"tblSales[[#This Row],[Unit Dijual (runcit)]]*tblSales[[#This Row],[Harga Runcit Per Unit]]+tblSales[[#This Row],[Unit Dijual (pukal)]]*tblSales[[#This Row],[Harga Pukal Per Unit*]]","v":{"v":78512,"d":"RM78,512"}}]
[null,3,{"$f":"IFERROR(IF(tblSales[[#This Row],[ID Produk]]<>\"\",VLOOKUP(tblSales[ID Produk],tblProducts[[ID Produk]:[Nama]],2,FALSE),\"\"),\"ID Produk Tak Diketahui\")","v":"Payung"},"2012-02-29",92,{"v":92,"d":"RM92"},956,{"v":1266,"d":"1,266"},{"$f":"tblSales[[#This Row],[Unit Dijual (runcit)]]+tblSales[[#This Row],[Unit Dijual (pukal)]]","v":{"v":2222,"d":"2,222"}},{"$f":"tblSales[[#This Row],[Unit Dijual (runcit)]]*tblSales[[#This Row],[Harga Runcit Per Unit]]+tblSales[[#This Row],[Unit Dijual (pukal)]]*tblSales[[#This Row],[Harga Pukal Per Unit*]]","v":{"v":204424,"d":"RM204,424"}}]
[null,4,{"$f":"IFERROR(IF(tblSales[[#This Row],[ID Produk]]<>\"\",VLOOKUP(tblSales[ID Produk],tblProducts[[ID Produk]:[Nama]],2,FALSE),\"\"),\"ID Produk Tak Diketahui\")","v":"Botol air"},"2012-02-29",43,{"v":36,"d":"RM36"},952,{"v":1390,"d":"1,390"},{"$f":"tblSales[[#This Row],[Unit Dijual (runcit)]]+tblSales[[#This Row],[Unit Dijual (pukal)]]","v":{"v":2342,"d":"2,342"}},{"$f":"tblSales[[#This Row],[Unit Dijual (runcit)]]*tblSales[[#This Row],[Harga Runcit Per Unit]]+tblSales[[#This Row],[Unit Dijual (pukal)]]*tblSales[[#This Row],[Harga Pukal Per Unit*]]","v":{"v":90976,"d":"RM90,976"}}]
[null,5,{"$f":"IFERROR(IF(tblSales[[#This Row],[ID Produk]]<>\"\",VLOOKUP(tblSales[ID Produk],tblProducts[[ID Produk]:[Nama]],2,FALSE),\"\"),\"ID Produk Tak Diketahui\")","v":"Seluar Pendek"},"2012-02-29",98,{"v":73,"d":"RM73"},530,{"v":1452,"d":"1,452"},{"$f":"tblSales[[#This Row],[Unit Dijual (runcit)]]+tblSales[[#This Row],[Unit Dijual (pukal)]]","v":{"v":1982,"d":"1,982"}},{"$f":"tblSales[[#This Row],[Unit Dijual (runcit)]]*tblSales[[#This Row],[Harga Runcit Per Unit]]+tblSales[[#This Row],[Unit Dijual (pukal)]]*tblSales[[#This Row],[Harga Pukal Per Unit*]]","v":{"v":157936,"d":"RM157,936"}}]
[null,1,{"$f":"IFERROR(IF(tblSales[[#This Row],[ID Produk]]<>\"\",VLOOKUP(tblSales[ID Produk],tblProducts[[ID Produk]:[Nama]],2,FALSE),\"\"),\"ID Produk Tak Diketahui\")","v":"Kemeja"},"2012-03-31",38,{"v":28,"d":"RM28"},973,{"v":1415,"d":"1,415"},{"$f":"tblSales[[#This Row],[Unit Dijual (runcit)]]+tblSales[[#This Row],[Unit Dijual (pukal)]]","v":{"v":2388,"d":"2,388"}},{"$f":"tblSales[[#This Row],[Unit Dijual (runcit)]]*tblSales[[#This Row],[Harga Runcit Per Unit]]+tblSales[[#This Row],[Unit Dijual (pukal)]]*tblSales[[#This Row],[Harga Pukal Per Unit*]]","v":{"v":76594,"d":"RM76,594"}}]
[null,2,{"$f":"IFERROR(IF(tblSales[[#This Row],[ID Produk]]<>\"\",VLOOKUP(tblSales[ID Produk],tblProducts[[ID Produk]:[Nama]],2,FALSE),\"\"),\"ID Produk Tak Diketahui\")","v":"Sandal"},"2012-03-31",50,{"v":36,"d":"RM36"},672,{"v":1105,"d":"1,105"},{"$f":"tblSales[[#This Row],[Unit Dijual (runcit)]]+tblSales[[#This Row],[Unit Dijual (pukal)]]","v":{"v":1777,"d":"1,777"}},{"$f":"tblSales[[#This Row],[Unit Dijual (runcit)]]*tblSales[[#This Row],[Harga Runcit Per Unit]]+tblSales[[#This Row],[Unit Dijual (pukal)]]*tblSales[[#This Row],[Harga Pukal Per Unit*]]","v":{"v":73380,"d":"RM73,380"}}]
[null,3,{"$f":"IFERROR(IF(tblSales[[#This Row],[ID Produk]]<>\"\",VLOOKUP(tblSales[ID Produk],tblProducts[[ID Produk]:[Nama]],2,FALSE),\"\"),\"ID Produk Tak Diketahui\")","v":"Payung"},"2012-03-31",24,{"v":23,"d":"RM23"},769,{"v":1629,"d":"1,629"},{"$f":"tblSales[[#This Row],[Unit Dijual (runcit)]]+tblSales[[#This Row],[Unit Dijual (pukal)]]","v":{"v":2398,"d":"2,398"}},{"$f":"tblSales[[#This Row],[Unit Dijual (runcit)]]*tblSales[[#This Row],[Harga Runcit Per Unit]]+tblSales[[#This Row],[Unit Dijual (pukal)]]*tblSales[[#This Row],[Harga Pukal Per Unit*]]","v":{"v":55923,"d":"RM55,923"}}]
[null,4,{"$f":"IFERROR(IF(tblSales[[#This Row],[ID Produk]]<>\"\",VLOOKUP(tblSales[ID Produk],tblProducts[[ID Produk]:[Nama]],2,FALSE),\"\"),\"ID Produk Tak Diketahui\")","v":"Botol air"},"2012-03-31",72,{"v":57,"d":"RM57"},985,{"v":1848,"d":"1,848"},{"$f":"tblSales[[#This Row],[Unit Dijual (runcit)]]+tblSales[[#This Row],[Unit Dijual (pukal)]]","v":{"v":2833,"d":"2,833"}},{"$f":"tblSales[[#This Row],[Unit Dijual (runcit)]]*tblSales[[#This Row],[Harga Runcit Per Unit]]+tblSales[[#This Row],[Unit Dijual (pukal)]]*tblSales[[#This Row],[Harga Pukal Per Unit*]]","v":{"v":176256,"d":"RM176,256"}}]
[null,5,{"$f":"IFERROR(IF(tblSales[[#This Row],[ID Produk]]<>\"\",VLOOKUP(tblSales[ID Produk],tblProducts[[ID Produk]:[Nama]],2,FALSE),\"\"),\"ID Produk Tak Diketahui\")","v":"Seluar Pendek"},"2012-03-31",85,{"v":43,"d":"RM43"},721,{"v":1426,"d":"1,426"},{"$f":"tblSales[[#This Row],[Unit Dijual (runcit)]]+tblSales[[#This Row],[Unit Dijual (pukal)]]","v":{"v":2147,"d":"2,147"}},{"$f":"tblSales[[#This Row],[Unit Dijual (runcit)]]*tblSales[[#This Row],[Harga Runcit Per Unit]]+tblSales[[#This Row],[Unit Dijual (pukal)]]*tblSales[[#This Row],[Harga Pukal Per Unit*]]","v":{"v":122603,"d":"RM122,603"}}]
[null,1,{"$f":"IFERROR(IF(tblSales[[#This Row],[ID Produk]]<>\"\",VLOOKUP(tblSales[ID Produk],tblProducts[[ID Produk]:[Nama]],2,FALSE),\"\"),\"ID Produk Tak Diketahui\")","v":"Kemeja"},"2012-04-30",91,{"v":65,"d":"RM65"},603,{"v":1226,"d":"1,226"},{"$f":"tblSales[[#This Row],[Unit Dijual (runcit)]]+tblSales[[#This Row],[Unit Dijual (pukal)]]","v":{"v":1829,"d":"1,829"}},{"$f":"tblSales[[#This Row],[Unit Dijual (runcit)]]*tblSales[[#This Row],[Harga Runcit Per Unit]]+tblSales[[#This Row],[Unit Dijual (pukal)]]*tblSales[[#This Row],[Harga Pukal Per Unit*]]","v":{"v":134563,"d":"RM134,563"}}]
[null,2,{"$f":"IFERROR(IF(tblSales[[#This Row],[ID Produk]]<>\"\",VLOOKUP(tblSales[ID Produk],tblProducts[[ID Produk]:[Nama]],2,FALSE),\"\"),\"ID Produk Tak Diketahui\")","v":"Sandal"},"2012-04-30",91,{"v":55,"d":"RM55"},892,{"v":1823,"d":"1,823"},{"$f":"tblSales[[#This Row],[Unit Dijual (runcit)]]+tblSales[[#This Row],[Unit Dijual (pukal)]]","v":{"v":2715,"d":"2,715"}},{"$f":"tblSales[[#This Row],[Unit Dijual (runcit)]]*tblSales[[#This Row],[Harga Runcit Per Unit]]+tblSales[[#This Row],[Unit Dijual (pukal)]]*tblSales[[#This Row],[Harga Pukal Per Unit*]]","v":{"v":181437,"d":"RM181,437"}}]
[null,3,{"$f":"IFERROR(IF(tblSales[[#This Row],[ID Produk]]<>\"\",VLOOKUP(tblSales[ID Produk],tblProducts[[ID Produk]:[Nama]],2,FALSE),\"\"),\"ID Produk Tak Diketahui\")","v":"Payung"},"2012-04-30",42,{"v":42,"d":"RM42"},611,{"v":1181,"d":"1,181"},{"$f":"tblSales[[#This Row],[Unit Dijual (runcit)]]+tblSales[[#This Row],[Unit Dijual (pukal)]]","v":{"v":1792,"d":"1,792"}},{"$f":"tblSales[[#This Row],[Unit Dijual (runcit)]]*tblSales[[#This Row],[Harga Runcit Per Unit]]+tblSales[[#This Row],[Unit Dijual (pukal)]]*tblSales[[#This Row],[Harga Pukal Per Unit*]]","v":{"v":75264,"d":"RM75,264"}}]
[null,4,{"$f":"IFERROR(IF(tblSales[[#This Row],[ID Produk]]<>\"\",VLOOKUP(tblSales[ID Produk],tblProducts[[ID Produk]:[Nama]],2,FALSE),\"\"),\"ID Produk Tak Diketahui\")","v":"Botol air"},"2012-04-30",85,{"v":43,"d":"RM43"},530,{"v":1039,"d":"1,039"},{"$f":"tblSales[[#This Row],[Unit Dijual (runcit)]]+tblSales[[#This Row],[Unit Dijual (pukal)]]","v":{"v":1569,"d":"1,569"}},{"$f":"tblSales[[#This Row],[Unit Dijual (runcit)]]*tblSales[[#This Row],[Harga Runcit Per Unit]]+tblSales[[#This Row],[Unit Dijual (pukal)]]*tblSales[[#This Row],[Harga Pukal Per Unit*]]","v":{"v":89727,"d":"RM89,727"}}]
[null,5,{"$f":"IFERROR(IF(tblSales[[#This Row],[ID Produk]]<>\"\",VLOOKUP(tblSales[ID Produk],tblProducts[[ID Produk]:[Nama]],2,FALSE),\"\"),\"ID Produk Tak Diketahui\")","v":"Seluar Pendek"},"2012-04-30",82,{"v":71,"d":"RM71"},716,{"v":1249,"d":"1,249"},{"$f":"tblSales[[#This Row],[Unit Dijual (runcit)]]+tblSales[[#This Row],[Unit Dijual (pukal)]]","v":{"v":1965,"d":"1,965"}},{"$f":"tblSales[[#This Row],[Unit Dijual (runcit)]]*tblSales[[#This Row],[Harga Runcit Per Unit]]+tblSales[[#This Row],[Unit Dijual (pukal)]]*tblSales[[#This Row],[Harga Pukal Per Unit*]]","v":{"v":147391,"d":"RM147,391"}}]
[null,1,{"$f":"IFERROR(IF(tblSales[[#This Row],[ID Produk]]<>\"\",VLOOKUP(tblSales[ID Produk],tblProducts[[ID Produk]:[Nama]],2,FALSE),\"\"),\"ID Produk Tak Diketahui\")","v":"Kemeja"},"2012-05-14",34,{"v":31,"d":"RM31"},850,{"v":1548,"d":"1,548"},{"$f":"tblSales[[#This Row],[Unit Dijual (runcit)]]+tblSales[[#This Row],[Unit Dijual (pukal)]]","v":{"v":2398,"d":"2,398"}},{"$f":"tblSales[[#This Row],[Unit Dijual (runcit)]]*tblSales[[#This Row],[Harga Runcit Per Unit]]+tblSales[[#This Row],[Unit Dijual (pukal)]]*tblSales[[#This Row],[Harga Pukal Per Unit*]]","v":{"v":76888,"d":"RM76,888"}}]
[null,2,{"$f":"IFERROR(IF(tblSales[[#This Row],[ID Produk]]<>\"\",VLOOKUP(tblSales[ID Produk],tblProducts[[ID Produk]:[Nama]],2,FALSE),\"\"),\"ID Produk Tak Diketahui\")","v":"Sandal"},"2012-05-14",64,{"v":40,"d":"RM40"},876,{"v":1663,"d":"1,663"},{"$f":"tblSales[[#This Row],[Unit Dijual (runcit)]]+tblSales[[#This Row],[Unit Dijual (pukal)]]","v":{"v":2539,"d":"2,539"}},{"$f":"tblSales[[#This Row],[Unit Dijual (runcit)]]*tblSales[[#This Row],[Harga Runcit Per Unit]]+tblSales[[#This Row],[Unit Dijual (pukal)]]*tblSales[[#This Row],[Harga Pukal Per Unit*]]","v":{"v":122584,"d":"RM122,584"}}]
[null,3,{"$f":"IFERROR(IF(tblSales[[#This Row],[ID Produk]]<>\"\",VLOOKUP(tblSales[ID Produk],tblProducts[[ID Produk]:[Nama]],2,FALSE),\"\"),\"ID Produk Tak Diketahui\")","v":"Payung"},"2012-05-14",33,{"v":30,"d":"RM30"},881,{"v":1149,"d":"1,149"},{"$f":"tblSales[[#This Row],[Unit Dijual (runcit)]]+tblSales[[#This Row],[Unit Dijual (pukal)]]","v":{"v":2030,"d":"2,030"}},{"$f":"tblSales[[#This Row],[Unit Dijual (runcit)]]*tblSales[[#This Row],[Harga Runcit Per Unit]]+tblSales[[#This Row],[Unit Dijual (pukal)]]*tblSales[[#This Row],[Harga Pukal Per Unit*]]","v":{"v":63543,"d":"RM63,543"}}]
[null,4,{"$f":"IFERROR(IF(tblSales[[#This Row],[ID Produk]]<>\"\",VLOOKUP(tblSales[ID Produk],tblProducts[[ID Produk]:[Nama]],2,FALSE),\"\"),\"ID Produk Tak Diketahui\")","v":"Botol air"},"2012-05-14",29,{"v":27,"d":"RM27"},802,{"v":1548,"d":"1,548"},{"$f":"tblSales[[#This Row],[Unit Dijual (runcit)]]+tblSales[[#This Row],[Unit Dijual (pukal)]]","v":{"v":2350,"d":"2,350"}},{"$f":"tblSales[[#This Row],[Unit Dijual (runcit)]]*tblSales[[#This Row],[Harga Runcit Per Unit]]+tblSales[[#This Row],[Unit Dijual (pukal)]]*tblSales[[#This Row],[Harga Pukal Per Unit*]]","v":{"v":65054,"d":"RM65,054"}}]
[null,5,{"$f":"IFERROR(IF(tblSales[[#This Row],[ID Produk]]<>\"\",VLOOKUP(tblSales[ID Produk],tblProducts[[ID Produk]:[Nama]],2,FALSE),\"\"),\"ID Produk Tak Diketahui\")","v":"Seluar Pendek"},"2013-12-11",24,{"v":15,"d":"RM15"},824,{"v":1994,"d":"1,994"},{"$f":"tblSales[[#This Row],[Unit Dijual (runcit)]]+tblSales[[#This Row],[Unit Dijual (pukal)]]","v":{"v":2818,"d":"2,818"}},{"$f":"tblSales[[#This Row],[Unit Dijual (runcit)]]*tblSales[[#This Row],[Harga Runcit Per Unit]]+tblSales[[#This Row],[Unit Dijual (pukal)]]*tblSales[[#This Row],[Harga Pukal Per Unit*]]","v":{"v":49686,"d":"RM49,686"}}]

{"sheet":"Senarai Harga","index":2,"n_rows":18,"n_cols":6,"rows_kept":18,"merged":[[15,1,15,5]]}
[null,"Senarai Harga Produk"]
[]
[null,"Adventure Works"]
[null,"23456 Maple Street"]
[null,"Springfield, CA 77503"]
[null,"Telefon: (425) 555-0150"]
[null,"FAKS: (425) 555-0152"]
[null,"www.adventure-works.com",{"$nulls":3},"Kemas kini terakhir 15/08/2013"]
[]
[null,"ID Produk","Nama","Perihalan","Harga Runcit Per Unit","Harga Pukal Per Unit*"]
[null,1,"Kemeja","Memastikan anda berasa selesa sepanjang musim panas dengan kemeja 100% kapas daripada kami.",{"v":22,"d":"RM22"},{"v":15,"d":"RM15"}]
[null,2,"Sandal","Pakai sandal getah kami yang tebal dan berjalan di atas pasir panas dengan selesa.",{"v":10,"d":"RM10"},{"v":6,"d":"RM6"}]
[null,3,"Payung","Lindungi diri anda daripada sinaran matahari di bawah payung besar kami yang merintang 96% sinaran UV yang merbahaya.",{"v":30,"d":"RM30"},{"v":20,"d":"RM20"}]
[null,4,"Botol air","Minum air bersuhu sempurna melalui botol air kami yang bertebat.",{"v":7,"d":"RM7"},{"v":5,"d":"RM5"}]
[null,5,"Seluar Pendek","Terus pergi ke kereta anda walaupun baru sahaja keluar dari air dengan seluar pendek nilon kami yang kering dengan pantas.",{"v":15,"d":"RM15"},{"v":8,"d":"RM8"}]
[]
[{"$nulls":5},"Hubungi kami untuk item yang tidak disenaraikan."]
[{"$nulls":5},"*Harga pukal digunakan pada kuantiti 12 atau lebih unit."]

{"sheet":"Pangsi Titik Harga","index":3,"n_rows":10,"n_cols":4,"rows_kept":10,"hidden":true,"merged":[[1,1,1,3]]}
[null,"Jadual Pangsi Titik Harga"]
[null,"Helaian ini sepatutnya kekal tersembunyi. Sebarang pengubahsuaian yang dibuat pada Jadual Pangsi berikut akan menyebabkan data yang salah pada Laporan Jualan Produk. "]
[null,"Produk Terpilih:",{"$f":"IF(LEN(B5),B5,\"None\")","v":"Sandal"}]
[null,"Nama Produk","Harga Runcit Per Unit","Hasil Tambah bagi Jumlah Jualan (#)"]
[null,"Sandal",{"v":38,"d":"RM38"},2464]
[null,null,{"v":50,"d":"RM50"},1777]
[null,null,{"v":64,"d":"RM64"},2539]
[null,null,{"v":70,"d":"RM70"},1787]
[null,null,{"v":83,"d":"RM83"},1758]
[null,null,{"v":91,"d":"RM91"},2715]

{"sheet":"Pangsi Aliran Jualan","index":4,"n_rows":9,"n_cols":3,"rows_kept":9,"hidden":true,"merged":[[1,1,1,3]]}
[null,"Jadual Pangsi Aliran Jualan"]
[null,"Helaian ini sepatutnya kekal tersembunyi. Sebarang pengubahsuaian yang dibuat pada Jadual Pangsi berikut akan menyebabkan data yang salah pada Laporan Jualan Produk. "]
[null,"Hasil Tambah bagi Jumlah Jualan (#)","Nama Produk"]
[null,"Tarikh Harga","Sandal"]
[null,"Jan",1787]
[null,"Feb",4222]
[null,"Mac",1777]
[null,"Apr",2715]
[null,"Mei",2539]